fUST/lending_fUST_20260203
["ID","MTS","AMOUNT","RATE_DAILY","PERIOD"]
[404396889,1770101448108,-170.16771374,0.00039923,14]
[404396890,1770101448120,-349.0,0.00039923,14]
[404396891,1770101448132,-152.0,0.00039923,14]
[404396892,1770101448145,-349.0,0.00039923,14]
[404396893,1770101448155,-152.0,0.00039923,14]
[404396894,1770101448166,-349.0,0.00039923,14]
[404396895,1770101448179,-152.0,0.00039923,14]
[404396896,1770101448191,-349.0,0.00039923,14]
[404396897,1770101448202,-152.0,0.00039923,14]
[404396898,1770101448215,-152.0,0.00039923,14]
[404396899,1770101448228,-349.0,0.00039923,14]
[404396900,1770101448241,-349.0,0.00039923,14]
[404396901,1770101448253,-240.0,0.00039923,14]
[404396902,1770101448266,-349.0,0.00039923,14]
[404396903,1770101448279,-335.0,0.00039923,14]
[404396904,1770101448292,-349.0,0.00039923,14]
[404396905,1770101448305,-349.0,0.00039923,14]
[404396906,1770101448316,-349.0,0.00039923,14]
[404396907,1770101448327,-335.0,0.00039923,14]
[404396908,1770101448338,-335.0,0.00039923,14]
[404396909,1770101448349,-349.0,0.00039923,14]
[404396910,1770101448360,-349.0,0.00039923,14]
[404396911,1770101448372,-335.0,0.00039923,14]
[404396912,1770101448385,-349.0,0.00039923,14]
[404396913,1770101448398,-170.90159164,0.00039923,14]
[404396914,1770101448410,-349.0,0.00039923,14]
[404396915,1770101448421,-349.0,0.00039923,14]
[404396916,1770101448433,-349.0,0.00039923,14]
[404396917,1770101448445,-349.0,0.00039923,14]
[404396918,1770101448458,-349.0,0.00039923,14]
[404396919,1770101448472,-349.0,0.00039923,14]
[404396920,1770101448483,-349.0,0.00039923,14]
[404396921,1770101448493,-349.0,0.00039923,14]
[404396922,1770101448504,-349.0,0.00039923,14]
[404396923,1770101448514,-349.0,0.00039923,14]
[404396924,1770101448525,-349.0,0.00039923,14]
[404396925,1770101448536,-349.0,0.00039923,14]
[404396926,1770101448547,-349.0,0.00039923,14]
[404396927,1770101448558,-349.0,0.00039923,14]
[404396928,1770101448570,-349.0,0.00039923,14]
[404396929,1770101448582,-349.0,0.00039923,14]
[404396930,1770101448594,-349.0,0.00039923,14]
[404396931,1770101448605,-349.0,0.00039923,14]
[404396932,1770101448616,-349.0,0.00039923,14]
[404396933,1770101448627,-153.0,0.00039923,14]
[404396934,1770101448638,-349.0,0.00039923,14]
[404396935,1770101448649,-349.0,0.00039923,14]
[404396936,1770101448660,-153.0,0.00039923,14]
[404396937,1770101448671,-303.0,0.00039923,14]
[404396938,1770101448682,-153.0,0.00039923,14]
[404396939,1770101448694,-171.02008649,0.00039923,14]
[404396940,1770101448704,-166.0,0.00039923,14]
[404396941,1770101448718,-166.0,0.00039923,14]
[404396942,1770101448730,-166.0,0.00039923,14]
[404396943,1770101448742,-166.0,0.00039923,14]
[404396944,1770101448753,-166.0,0.00039923,14]
[404396945,1770101448768,-172.0,0.00039923,14]
[404396946,1770101448779,-166.0,0.00039923,14]
[404396947,1770101448792,-330.21235,0.00039923,120]
[404396948,1770101448803,-330.21235,0.00039923,120]
[404396949,1770101448815,-330.21235,0.00039923,120]
[404396950,1770101448826,-330.21235,0.00039923,120]
[404396951,1770101448839,-151.0,0.00039923,120]
[404396952,1770101448935,-151.0,0.00039923,120]
[404396953,1770101448949,-190.135618,0.00039923,120]
[404396954,1770101448959,-151.0,0.00039923,120]
[404396955,1770101448974,-151.0,0.00039923,120]
[404396956,1770101448983,-151.0,0.00039923,120]
[404396957,1770101448992,-151.0,0.00039923,120]
[404396958,1770101449002,-77254.47555542,0.0003997,120]
[404396959,1770101449014,-1057.89190586,0.0003997,120]
[404397076,1770101583954,183.17981216,0.00013273,2]
[404397259,1770102068564,-152.74809061,0.00018947,2]
[404397260,1770102092778,303.10001603,0.000189,2]
[404397261,1770102092806,303.10001603,0.00019656,2]
[404397262,1770102092830,454.65002405,0.00019845,4]
[404397263,1770102092882,454.65002405,0.00020034,4]
[404397264,1770102092910,303.10001603,0.00019467,2]
[404397265,1770102092938,303.10001603,0.00019089,2]
[404397266,1770102092977,303.10001603,0.00019278,2]
[404397267,1770102093031,606.20003204,0.00020223,4]
[404397268,1770102105064,-552.43792814,0.00022,6]
[404397289,1770102196790,408.69302117,0.00013273,2]
[404397298,1770102245163,500.0,0.00013273,2]
[404397380,1770102423264,456.42780717,0.00013273,2]
[404397433,1770102548106,500.0,0.00013273,2]
[404397580,1770102631571,-300.042,0.00022,6]
[404397621,1770102637840,-147.52007186,0.00022,6]
[404397622,1770102637850,-150.0,0.000228,2]
[404397623,1770102637859,-176.8,0.000236,2]
[404397624,1770102637867,-315.51202736,0.00029,10]
[404398141,1770102645921,-980.30127475,0.00029,10]
[404398142,1770102646057,-1858.39896189,0.00029,10]
[404398146,1770102667157,500.0,0.00013699,2]
[404398147,1770102667302,1000.0,0.00014247,2]
[404398148,1770102667361,1502.01915111,0.00014795,2]
[404398265,1770103714103,7585.46935721,0.000295,120]
[404398266,1770103719447,507.3792008,0.000135,2]
[404398267,1770103746411,-300.0,0.00017469,2]
[404398268,1770103808126,-300.0,0.00017469,2]
[404398269,1770103808158,-1200.0,0.00017469,2]
[404398338,1770103837920,-791.54473922,0.00017294,2]
[404398352,1770103838778,-419.73288283,0.00017294,2]
[404398378,1770103840139,-352.49099741,0.00017469,2]
[404398380,1770103840149,-500.0,0.00017469,2]
[404398382,1770103840159,-500.0,0.00017469,2]
[404398384,1770103840168,-483.10353818,0.00017469,2]
[404398386,1770103840177,-500.0,0.00017469,2]
[404398388,1770103840187,-500.0,0.00017469,2]
[404398390,1770103840195,-500.0,0.00017469,2]
[404398392,1770103840204,-500.0,0.00017469,2]
[404398394,1770103840213,-500.0,0.00017469,2]
[404398396,1770103840222,-500.0,0.00017469,2]
[404398398,1770103840231,-363.31576175,0.00017469,2]
[404398401,1770103840245,-136.68423825,0.00017469,2]
[404398402,1770103840255,-1898.92123839,0.00017469,2]
[404398404,1770103840264,-1910.41063894,0.0001747,2]
[404398873,1770103846138,-1638.08,0.0001747,2]
[404398878,1770103852814,-604.0,0.0001747,2]
[404398879,1770103869471,-300.0,0.00017469,2]
[404398880,1770103915445,-543.68041504,0.00017435,2]
[404398885,1770103930362,-300.0,0.00017469,2]
[404398886,1770103934921,500.0,0.00017469,2]
[404398887,1770103934953,500.0,0.00017469,2]
[404398888,1770103934989,500.0,0.00017469,2]
[404398889,1770103935019,500.0,0.00017469,2]
[404398890,1770103935064,500.0,0.00017469,2]
[404398891,1770103935096,178.79683357,0.00017469,2]
[404398892,1770103935127,500.0,0.00017469,2]
[404398893,1770103935158,500.0,0.00017469,2]
[404398894,1770103935189,306.54485125,0.00017469,2]
[404398895,1770103935221,500.0,0.00017469,2]
[404398896,1770103935253,500.0,0.00017469,2]
[404398897,1770103935287,500.0,0.00017469,2]
[404398898,1770103935317,500.0,0.00017469,2]
[404398899,1770103935347,500.0,0.00017469,2]
[404398900,1770103935381,500.0,0.00017469,2]
[404398901,1770103935411,500.0,0.00017469,2]
[404398902,1770103935455,500.0,0.00017469,2]
[404398903,1770103935512,500.0,0.00017469,2]
[404398904,1770103935561,500.0,0.00017469,2]
[404398905,1770103935614,159.8237623,0.00017469,2]
[404398906,1770103935679,254.84455288,0.00017469,2]
[404398907,1770103935707,245.15544712,0.00017469,2]
[404398912,1770104097201,-4785.51217851,0.00017435,2]
[404398913,1770104167277,-0.01,0.000173,2]
[404398914,1770104167629,-0.02,0.000173,2]
[404398915,1770104167887,-0.04,0.000173,2]
[404398916,1770104167933,-9199.37537742,0.000173,2]
[404398917,1770104167969,-800.55462258,0.000173,2]
[404398918,1770104244647,-791.54473922,0.00017293,2]
[404398919,1770104321918,186.009496,0.0001691,2]
[404398920,1770104363530,-4187.32315617,0.000174,2]
[404398922,1770104659828,-3663.90776164,0.000174,2]
[404398925,1770104761435,4166.62,0.00024899,120]
[404398926,1770104765175,-1200.0,0.00017468,2]
[404398927,1770104765207,-300.0,0.00017468,2]
[404398928,1770104765243,-150.0,0.00017469,2]
[404398929,1770104765275,-500.0,0.00017469,2]
[404398930,1770104765311,-595.26046708,0.00017469,2]
[404398931,1770104765343,-354.28825259,0.00017469,2]
[404398932,1770104765508,-3650.91256066,0.00017469,2]
[404398933,1770104767924,-515.70743934,0.00017469,2]
[404398934,1770104767956,-4166.62,0.00017469,2]
[404398935,1770104768013,-635.35512132,0.00017469,2]
[404398936,1770104774140,-3531.26487868,0.00017469,2]
[404398937,1770104774179,-2937.48024264,0.00017469,2]
[404398938,1770104777247,-1229.13975736,0.00017469,2]
[404398949,1770104889028,10000.0,0.00017,2]
[404398950,1770104899832,0.01,0.00017,2]
[404398951,1770104899858,5222.99,0.00017,2]
[404398953,1770104988726,-1000.0,0.00016536,2]
[404399049,1770105038112,-3205.91929147,0.00017467,2]
[404399051,1770105038123,-300.0,0.00017469,2]
[404399053,1770105038134,-150.0,0.0001747,2]
[404399055,1770105038144,-13650.42381119,0.0001747,2]
[404399058,1770105038156,-2000.0,0.0001747,2]
[404399653,1770105046310,-25451.47425744,0.0001747,2]
[404399662,1770105066693,500.0,0.00013273,2]
[404399663,1770105066751,1000.0,0.00013821,2]
[404399664,1770105066801,923.93375556,0.00014368,2]
[404399665,1770105070727,500.0,0.00013273,2]
[404399666,1770105081225,500.0,0.00013273,2]
[404399667,1770105095981,-279.3615845,0.00017433,2]
[404399668,1770105127467,500.0,0.00013699,2]
[404399669,1770105128218,510.73383861,0.00013273,2]
[404399670,1770105130255,-1300.05491363,0.00017433,2]
[404399671,1770105145036,-250.5002125,0.00017434,2]
[404399672,1770105184593,422.13878715,0.00013699,2]
[404399673,1770105188219,500.0,0.00013273,2]
[404399674,1770105188260,500.0,0.00013699,2]
[404399675,1770105188293,1000.0,0.00013821,2]
[404399676,1770105188321,1002.08830779,0.00014247,2]
[404399677,1770105188350,967.52166678,0.00014368,2]
[404399678,1770105188501,500.0,0.00013699,2]
[404399679,1770105188606,1000.0,0.00014247,2]
[404399680,1770105188646,501.61509767,0.00014795,2]
[404399681,1770105243460,503.52110681,0.00013273,2]
[404399683,1770105342262,-3445.47743963,0.00016497,2]
[404399684,1770105345246,-10000.01,0.00016497,2]
[404399685,1770105348217,-10000.01,0.00016497,2]
[404399686,1770105351658,-89.22027217,0.00016497,2]
[404399693,1770105587089,-3415.05924742,0.0001737,2]
[404399694,1770105634216,3298.57,0.00024899,120]
[404399699,1770105692464,-1642.612323,0.00016502,2]
[404399701,1770105735359,500.0,0.00013273,2]
[404399702,1770105735411,814.0,0.00013821,2]
[404399739,1770105762992,-157.92794096,0.00016596,2]
[404399749,1770105778015,-631.71176383,0.00017256,2]
[404399752,1770105792932,334.34,0.00017256,2]
[404399754,1770105866624,-2988.17684151,0.0001737,2]
[404399777,1770106156382,-2614.65473633,0.00017369,2]
[404399799,1770106232141,-262.228,0.00017467,2]
[404399805,1770106238651,-37.772,0.00017467,2]
[404399806,1770106238661,-300.0,0.00017467,2]
[404399807,1770106238671,-300.0,0.00017467,2]
[404399808,1770106238681,-150.0,0.00017467,2]
[404399809,1770106238692,-1051.415663,0.00017468,2]
[404399810,1770106238705,-3921.72438981,0.00017468,2]
[404399811,1770106238841,-176.13294918,0.00017468,2]
[404399812,1770106238851,-500.0,0.00017468,2]
[404399813,1770106238860,-195.61507137,0.00017468,2]
[404399814,1770106238869,-500.0,0.00017468,2]
[404399815,1770106238878,-500.0,0.00017468,2]
[404399816,1770106238888,-500.0,0.00017468,2]
[404399817,1770106238897,-500.0,0.00017468,2]
[404399818,1770106238906,-500.0,0.00017468,2]
[404399819,1770106238916,-292.32443315,0.00017468,2]
[404399820,1770106238934,-207.67556685,0.00017468,2]
[404399821,1770106238944,-500.0,0.00017468,2]
[404399822,1770106238953,-500.0,0.00017468,2]
[404399823,1770106238963,-500.0,0.00017468,2]
[404399824,1770106238972,-500.0,0.00017468,2]
[404399825,1770106238982,-500.0,0.00017468,2]
[404399826,1770106238991,-500.0,0.00017468,2]
[404399827,1770106239001,-500.0,0.00017468,2]
[404399828,1770106239010,-170.0,0.00017468,2]
[404399829,1770106239020,-500.0,0.00017468,2]
[404399830,1770106239029,-500.0,0.00017468,2]
[404399831,1770106239039,-500.0,0.00017468,2]
[404399832,1770106239048,-500.0,0.00017468,2]
[404399833,1770106239060,-500.0,0.00017468,2]
[404399834,1770106239069,-355.02726786,0.00017468,2]
[404399835,1770106239079,-170.99310968,0.00017468,2]
[404399836,1770106239089,-250.26925703,0.00017468,2]
[404399837,1770106239098,-500.0,0.00017468,2]
[404399838,1770106239108,-500.0,0.00017468,2]
[404399839,1770106239118,-500.0,0.00017468,2]
[404399840,1770106239128,-500.0,0.00017468,2]
[404399841,1770106239137,-500.0,0.00017468,2]
[404399842,1770106239147,-351.11021988,0.00017468,2]
[404399843,1770106239158,-148.88978012,0.00017468,2]
[404399844,1770106239167,-500.0,0.00017468,2]
[404399845,1770106239177,-500.0,0.00017468,2]
[404399846,1770106239186,-500.0,0.00017468,2]
[404399847,1770106239196,-500.0,0.00017468,2]
[404399848,1770106239206,-199.50444174,0.00017469,2]
[404399849,1770106239215,-159.81826738,0.00017469,2]
[404399850,1770106239225,-151.0,0.00017469,2]
[404399851,1770106239234,-3298.57,0.00017469,2]
[404399852,1770106239243,-3298.57,0.00017469,2]
[404399853,1770106239254,-3298.57,0.00017469,2]
[404399854,1770106239263,-3298.57,0.00017469,2]
[404399855,1770106239272,-151.682244,0.00017469,2]
[404399856,1770106239283,-151.0,0.00017469,2]
[404399857,1770106239292,-151.0,0.00017469,2]
[404399858,1770106239301,-344.28997236,0.00017469,2]
[404399859,1770106239313,-798.01776697,0.00017469,2]
[404399860,1770106239323,-151.0,0.00017469,2]
[404399861,1770106239332,-151.0,0.00017469,2]
[404399862,1770106239341,-151.0,0.00017469,2]
[404399863,1770106239350,-151.0,0.00017469,2]
[404399864,1770106239359,-639.2730695,0.00017469,2]
[404399865,1770106239369,-500.0,0.00017469,2]
[404399866,1770106239379,-24490.84544682,0.0001747,2]
[404399867,1770106239391,-12916.23568506,0.0001747,2]
[404399868,1770106239400,-151.0,0.0001747,2]
[404399869,1770106239409,-151.0,0.0001747,2]
[404399870,1770106239419,-151.0,0.0001747,2]
[404399871,1770106239428,-2142.92227158,0.000176,2]
[404399872,1770106239437,-150.06118961,0.00017608,2]
[404399873,1770106239447,-434.94433204,0.00017717,2]
[404399874,1770106239457,-300.0,0.00017817,2]
[404399875,1770106239470,-300.0,0.00017817,2]
[404399876,1770106239479,-300.0,0.00017817,2]
[404399877,1770106239489,-300.0,0.00017817,2]
[404399878,1770106239499,-300.0,0.00017817,2]
[404399879,1770106239510,-300.0,0.00017817,2]
[404399880,1770106239519,-300.0,0.00017817,2]
[404399881,1770106239529,-300.0,0.00017817,2]
[404399882,1770106239540,-300.0,0.00017817,2]
[404399883,1770106239549,-300.0,0.00017817,2]
[404399884,1770106239561,-300.0,0.00017817,2]
[404399885,1770106239570,-300.0,0.00017817,2]
[404399886,1770106239580,-300.0,0.00017817,2]
[404399887,1770106239589,-300.0,0.00017817,2]
[404399888,1770106239598,-300.0,0.00017817,2]
[404399889,1770106239607,-600.0,0.00017817,2]
[404399890,1770106239616,-161.820432,0.00017817,2]
[404399891,1770106239626,-151.0,0.00017817,2]
[404399892,1770106239635,-270.455552,0.00017817,2]
[404399893,1770106239644,-1438.36440639,0.00018171,2]
[404399894,1770106239653,-1795.53997569,0.00018198,2]
[404399895,1770106239663,-222.0,0.00019,2]
[404399896,1770106239672,-420.0,0.00019069,2]
[404399897,1770106239681,-1036.86663763,0.00019115,2]
[404399898,1770106239691,-177.0,0.00019467,2]
[404399899,1770106239700,-151.0,0.00019468,2]
[404399900,1770106239709,-720.0,0.00019599,2]
[404399901,1770106239718,-15011.0,0.000198,2]
[404399902,1770106239727,-1421.35146861,0.00019843,2]
[404399903,1770106239736,-3298.57,0.00019999,2]
[404399904,1770106239745,-3298.57,0.00019999,2]
[404399905,1770106239754,-3298.57,0.00019999,2]
[404399906,1770106239763,-14732.71581744,0.0002,2]
[404399907,1770106239772,-4863.45535886,0.0002,2]
[404399908,1770106239784,-793.05338956,0.0002,2]
[404400452,1770106245830,-19559.13736861,0.0002,2]
[404400530,1770106246560,-8823.44521921,0.0002,2]
[404400531,1770106246577,-6757.54156541,0.0002,2]
[404400532,1770106246587,-176.8,0.000203,2]
[404400533,1770106246597,-477.65,0.0002051,2]
[404400534,1770106246606,-250.0,0.00020559,2]
[404400535,1770106246616,-1392.42216525,0.0002061,2]
[404400536,1770106246626,-587.0,0.00020817,2]
[404400537,1770106246636,-434.94433203,0.00020863,2]
[404400538,1770106246646,-257.05877553,0.000209,2]
[404400539,1770106246656,-208.09328691,0.00020944,2]
[404400540,1770106246667,-3298.57,0.00020999,2]
[404400541,1770106246676,-278.04300314,0.00021,2]
[404400542,1770106246686,-18751.05997614,0.00021,2]
[404400543,1770106246696,-209.9449888,0.0002106,2]
[404400544,1770106246706,-204.90170149,0.00021063,2]
[404400545,1770106246715,-204.0,0.00021467,2]
[404400546,1770106246724,-864.0,0.00021559,10]
[404400547,1770106246734,-250.0,0.00021694,2]
[404400548,1770106246743,-250.0,0.00021694,2]
[404400549,1770106246753,-250.0,0.00021694,2]
[404400550,1770106246762,-250.0,0.00021694,2]
[404400551,1770106246773,-250.0,0.00021694,2]
[404400552,1770106246783,-250.0,0.00021694,2]
[404400553,1770106246793,-250.0,0.00021694,2]
[404400554,1770106246803,-250.0,0.00021694,2]
[404400555,1770106246813,-250.0,0.00021694,2]
[404400556,1770106246823,-823.0,0.00022726,2]
[404400557,1770106246833,-231.0,0.00023467,2]
[404400559,1770106246843,-1000.0,0.00023715,10]
[404400560,1770106246853,-186.009496,0.00023759,2]
[404400561,1770106246862,-232.65266038,0.00024,14]
[404400562,1770106246872,-434.94433203,0.00024009,2]
[404400563,1770106246882,-3298.57,0.00024557,2]
[404400564,1770106246891,-3298.57,0.00024649,2]
[404400565,1770106246900,-3298.57,0.00024649,2]
[404400566,1770106246910,-3298.57,0.00024649,2]
[404400567,1770106246920,-3298.57,0.00024649,2]
[404400568,1770106246929,-1918.14263337,0.00024649,2]
[404400569,1770106246942,-1380.42736663,0.00024649,2]
[404400570,1770106246951,-3298.57,0.00024649,2]
[404400571,1770106246961,-2393.39551921,0.0002465,2]
[404400572,1770106247106,-20011.3866,0.0002465,2]
[404400573,1770106247118,-499.63515319,0.0002465,2]
[404400574,1770106247148,-458.02,0.0002465,2]
[404400591,1770106279990,500.0,0.00013699,2]
[404400592,1770106280039,796.25821529,0.00014247,2]
[404400593,1770106280396,158.81622736,0.00013273,2]
[404400600,1770106336199,488.50652582,0.00013273,2]
[404400620,1770106387572,500.0,0.00013273,2]
[404400621,1770106387629,1000.0,0.00013821,2]
[404400622,1770106387679,1500.0,0.00014368,2]
[404400623,1770106387732,1500.0,0.00014916,2]
[404400625,1770106443193,500.89955537,0.00013273,2]
[404400632,1770106507707,500.0,0.00013273,2]
[404400633,1770106507772,1000.0,0.00013821,2]
[404400634,1770106507811,1500.0,0.00014368,2]
[404400635,1770106507905,55.52947616,0.00014916,2]
[404400636,1770106507930,189.18307003,0.00014916,2]
[404400637,1770106509311,508.81622736,0.00013273,2]
[404400638,1770106557561,1294.49,0.00024899,120]
[404400639,1770106557798,1294.49,0.00028999,120]
[404400690,1770106745479,500.0,0.00013699,2]
[404400708,1770106865603,500.0,0.00013273,2]
[404400709,1770106865658,989.61519171,0.00014368,2]
[404400710,1770106865726,1000.0,0.00013821,2]
[404400711,1770106866671,691.13,0.00015342,2]
[404400753,1770107223474,231.28910366,0.00013699,2]
[404400754,1770107223503,500.0,0.00013273,2]
[404400755,1770107223569,1004.6841927,0.00013821,2]
[404400775,1770107383042,3885.29221454,0.00015999,2]
[404400776,1770107383069,10000.01,0.00015999,2]
[404400777,1770107383096,10000.01,0.00015999,2]
[404400778,1770107383122,10000.01,0.00015999,2]
[404400779,1770107383147,10000.01,0.00015999,2]
[404400780,1770107383174,10000.01,0.00015999,2]
[404400781,1770107383200,10000.01,0.00015999,2]
[404400782,1770107383225,10000.01,0.00015999,2]
[404400783,1770107383251,10000.01,0.00015999,2]
[404400784,1770107383275,10000.01,0.00015999,2]
[404400785,1770107387413,-4.61778546,0.00015999,2]
[404400786,1770107393014,5000.0,0.00015999,2]
[404400787,1770107399879,-300.0,0.00016318,2]
[404400788,1770107399918,-300.0,0.00016318,2]
[404400789,1770107399953,-300.0,0.00016318,2]
[404400790,1770107399989,-300.0,0.00016318,2]
[404400791,1770107400024,-300.0,0.00016318,2]
[404400792,1770107400060,-300.0,0.00016318,2]
[404400793,1770107400096,-300.0,0.00016318,2]
[404400794,1770107400132,-300.0,0.00016318,2]
[404400795,1770107400168,-300.0,0.00016318,2]
[404400796,1770107400204,-300.0,0.00016318,2]
[404400797,1770107400240,-300.0,0.00016318,2]
[404400798,1770107400278,-300.0,0.00016318,2]
[404400799,1770107400315,-300.0,0.00016318,2]
[404400800,1770107400350,-300.0,0.00016318,2]
[404400801,1770107400386,-300.0,0.00016318,2]
[404400806,1770107408292,1000.01,0.00016318,2]
[404400807,1770107408323,3999.99,0.00016318,2]
[404400808,1770107415330,-600.0,0.00016643,2]
[404400809,1770107416265,5000.0,0.00016318,2]
[404400810,1770107427283,3800.01,0.00016643,2]
[404400811,1770107427308,10000.01,0.00016643,2]
[404400812,1770107427332,10000.01,0.00016643,2]
[404400813,1770107427356,10000.01,0.00016643,2]
[404400814,1770107427380,10000.01,0.00016643,2]
[404400815,1770107427404,10000.01,0.00016643,2]
[404400816,1770107427427,10000.01,0.00016643,2]
[404400834,1770107432638,-1002.01229524,0.00017294,2]
[404400835,1770107437810,10000.01,0.00015999,2]
[404400836,1770107437837,10000.01,0.00015999,2]
[404400837,1770107437865,10000.01,0.00015999,2]
[404400852,1770107438570,-3997.98770476,0.00017294,2]
[404400854,1770107438580,-300.0,0.00017469,2]
[404400856,1770107438590,-63904.98933538,0.0001747,2]
[404400858,1770107438603,-2287.82289428,0.00017542,2]
[404400860,1770107438613,-151.76408641,0.00017642,2]
[404400862,1770107438623,-720.0,0.00018308,2]
[404400864,1770107438632,-150.65242575,0.00018761,2]
[404400866,1770107438642,-420.0,0.00019071,2]
[404400868,1770107438652,-179.08162196,0.00019642,2]
[404400870,1770107438662,-793.05338956,0.0002,2]
[404400872,1770107438671,-156.26326995,0.00020006,5]
[404400874,1770107438680,-864.0,0.00020138,2]
[404400876,1770107438690,-592.96330116,0.00020499,2]
[404400878,1770107438699,-1067.33394208,0.00020499,2]
[404400880,1770107438709,-254.51987077,0.00020499,2]
[404400882,1770107438718,-458.13576739,0.00020499,2]
[404400884,1770107438728,-262.87644089,0.00020771,5]
[404400886,1770107438737,-210.58406995,0.00020773,5]
[404400888,1770107438747,-587.0,0.0002082,2]
[404400890,1770107438756,-168.1162592,0.0002106,2]
[404400892,1770107438766,-185.50021,0.00021462,2]
[404400894,1770107438775,-206.39915751,0.00021642,2]
[404400896,1770107438784,-2059.7643489,0.00021816,2]
[404400898,1770107438793,-4143.1466205,0.00021816,2]
[404400900,1770107438802,-150.0,0.00021918,2]
[404400901,1770107438812,-150.0,0.00021918,2]
[404400903,1770107438821,-831.54077448,0.00021996,2]
[404400906,1770107438831,-1000.0,0.00022152,10]
[404400908,1770107438840,-300.0,0.00022466,2]
[404400909,1770107438851,-200.0,0.00022466,2]
[404400911,1770107438862,-624.42802673,0.00022565,5]
[404400913,1770107438872,-335.03199177,0.00022565,5]
[404400915,1770107438882,-1294.49,0.00022725,2]
[404400917,1770107438891,-301.98559799,0.00022725,2]
[404400919,1770107438902,-500.0,0.00022725,2]
[404400921,1770107438911,-823.0,0.00022729,2]
[404400923,1770107438920,-450.0,0.00023014,2]
[404400925,1770107438929,-312.11716781,0.00023014,2]
[404400927,1770107438942,-413.52706452,0.00023082,2]
[404400929,1770107438951,-516.783952,0.00023224,2]
[404400931,1770107438960,-452.49651049,0.00023562,2]
[404400933,1770107438970,-233.71669307,0.00023642,2]
[404400935,1770107438979,-630.0,0.00024198,2]
[404400937,1770107438987,-317.22525198,0.00024198,2]
[404400939,1770107438997,-527.80769523,0.00024198,2]
[404400942,1770107439010,-241.22145663,0.00024198,2]
[404400944,1770107439020,-516.783952,0.00024202,2]
[404400946,1770107439029,-1000.0,0.00024368,10]
[404400948,1770107439039,-244.0,0.00024368,10]
[404400949,1770107439048,-834.63092689,0.0002455,2]
[404400951,1770107439057,-924.4609689,0.00024581,2]
[404400952,1770107439067,-198.53,0.00024639,10]
[404400954,1770107439076,-343.06,0.0002464,10]
[404400956,1770107439085,-285.88,0.0002464,10]
[404400957,1770107439095,-238.23,0.0002464,10]
[404400959,1770107439104,-1294.49,0.00024649,2]
[404400961,1770107439114,-1294.49,0.00024649,2]
[404400963,1770107439123,-1294.49,0.00024649,2]
[404400965,1770107439132,-1294.49,0.00024649,2]
[404400967,1770107439145,-1294.49,0.00024649,2]
[404400968,1770107439154,-500.0,0.00024649,2]
[404400970,1770107439163,-241.00298065,0.00024649,2]
[404400972,1770107439173,-107767.9275703,0.0002465,2]
[404400973,1770107439182,-515.19264301,0.0002465,2]
[404400975,1770107439191,-847.7488,0.0002465,2]
[404400977,1770107439201,-650.8812,0.0002465,5]
[404400979,1770107439210,-2393.39551921,0.0002465,2]
[404400980,1770107439221,-150.0,0.00024658,2]
[404400982,1770107439231,-1642.612323,0.00024753,2]
[404400984,1770107439242,-2310.01084647,0.00024774,2]
[404400986,1770107439252,-1152.0,0.00024813,2]